[Event "45th FIDE Olympiad 2024"]
[Site "Budapest"]
[Date "2024.09.19"]
[Round "8.33"]
[White "Prudente, Elmer"]
[Black "Alrehaili, Ahmed Abdullah S"]
[Result "0-1"]
[WhiteElo "1949"]
[BlackElo "2117"]
[PlyCount "102"]
[EventDate "2024.09.05"]
[EventType "team-tourn"]
[EventCountry "HUN"]
[WhiteTeam "Guam"]
[BlackTeam "Saudi Arabia"]
[WhiteTeamCountry "GMA"]
[BlackTeamCountry "SAU"]
[TimeControl "40/5400+30:1800+30"]

1. e4 e6 2. d4 d5 3. Nd2 c5 4. exd5 Qxd5 5. Ngf3 cxd4 6. Bc4 Qd6 7. O-O Nf6 8. Nb3 Nc6 9. Nbxd4 Nxd4 10. Nxd4 a6 11. Re1 Be7 12. c3 O-O 13. Qf3 e5 14. Nf5 Bxf5 15. Qxf5 Qc7 16. Bd3 h6 17. Qxe5 Bd6 18. Qf5 Bxh2+ 19. Kh1 Rad8 20. g3 Rd5 21. Qf3 Rh5 22. Kg2 Qd7 23. Bf1 Rc8 24. Bf4 Rcc5 25. Rad1 Qh3+ 26. Kh1 Qc8 27. Kg2 Rcf5 28. Rd4 g6 29. Bd3 Rd5 30. Kf1 Qd7 31. Rxd5 Rxd5 32. Bc4 Rc5 33. Bb3 Rf5 34. Rd1 Qc8 35. Bc2 Rh5 36. Rd6 Ne8 37. Rb6 Ng7 38. Rxb7 Qc4+ 39. Kg2 Qe6 40. Rb8+ Kh7 41. Qa8 Qh3+ 42. Kf3 Ne6 43. Rh8+ Kg7 44. Rg8+ Kf6 45. Qb8 Rb5 46. Qd6 Bg1 47. Be3 Re5 48. Qd1 Qh5+ 49. Kg2 Qh2+ 50. Kf1 Rxe3 51. Qd2 Rf3 {0-} 0-1

[Event "45th FIDE Olympiad 2024"]
[Site "Budapest"]
[Date "2024.09.19"]
[Round "8.34"]
[White "Kazakouski, Valery"]
[Black "Adams, Michael"]
[Result "0-1"]
[ECO "D37"]
[WhiteElo "2577"]
[BlackElo "2661"]
[Annotator "RC"]
[PlyCount "82"]
[EventDate "2024.09.05"]
[EventType "team-tourn"]
[EventCountry "HUN"]
[SourceTitle "playchess.com"]
[Source "ChessBase"]
[SourceQuality "1"]
[WhiteTeam "Lithuania"]
[BlackTeam "England"]
[WhiteTeamCountry "LTU"]
[BlackTeamCountry "ENG"]
[TimeControl "40/5400+30:1800+30"]

1. d4 {[%emt 0:00:06]} Nf6 {[%emt 0:00:09]} 2. c4 {[%emt 0:00:09]} e6 {[%emt 0:00:05]} 3. Nc3 {[%emt 0:00:08]} d5 {[%emt 0:00:11]} 4. Nf3 {[%emt 0:00:24]} Be7 {[%emt 0:00:08]} 5. Bf4 {[%emt 0:00:22]} O-O {[%emt 0:00:09]} 6. e3 {[%emt 0:00:12]} Nbd7 {[%emt 0:00:11]} 7. c5 {[%emt 0:00:40]} c6 {[%emt 0:00:13]} 8. b4 {[%emt 0:00:26]} b6 {[%emt 0:00:17]} 9. h4 {[%emt 0:00:46]} a5 {[%emt 0:02:03]} 10. a3 {[%emt 0:01:33]} h6 {[%emt 0:00:47]} 11. Bd3 {[%emt 0:07:53]} Ba6 {[%emt 0:01:09]} 12. Bxa6 {[%emt 0:09:58]} Rxa6 {[%emt 0:00:04]} 13. b5 {[%emt 0:03:31]} cxb5 {[%emt 0:02:12]} 14. c6 {[%emt 0:00:20]} Qc8 {[%emt 0:03:38]} 15. c7 {[%emt 0:02:04]} b4 {[%emt 0:00:32]} 16. Nb5 {[%emt 0:00:37]} a4 {[%emt 0:09:21]} 17. Rc1 {[%emt 0:10:58]} Ne4 {[%emt 0:04:16]} 18. Nd2 {[%emt 0:08:10]} Ndf6 {[%emt 0:07:43]} 19. Nxe4 {[%emt 0:15:27]} dxe4 {[%emt 0:00:30]} 20. Nd6 {[%emt 0:11:50]} Bxd6 {[%emt 0:00:18]} 21. Bxd6 {[%emt 0:00:07]} b3 {[%emt 0:11:10]} 22. Bxf8 {[%emt 0:01:43]} Kxf8 {[%emt 0:00:12]} 23. Qd2 {[%emt 0:08:37]} Nd5 {[%emt 0:07:00]} 24. f3 {[%emt 0:05:30]} exf3 {[%emt 0:01:10]} 25. gxf3 {[%emt 0:03:13]} Ra7 {[%emt 0:05:05]} 26. e4 {[%emt 0:00:10]} Rxc7 {[%emt 0:01:49]} 27. Rxc7 {[%emt 0:00:45]} Nxc7 {[%emt 0:00:57]} 28. Qb4+ {[%emt 0:01:28]} Kg8 {[%emt 0:00:45]} 29. Kf2 {[%emt 0:03:41]} b5 {[%emt 0:07:01]} 30. Qc5 {[%emt 0:00:54]} Qd7 {[%emt 0:03:42]} 31. Ke3 {[%emt 0:01:41]} Ne8 {[%emt 0:02:43]} 32. Rg1 {[%emt 0:02:22]} Nd6 {[%emt 0:02:11]} 33. h5 {[%emt 0:00:34]} f5 {[%emt 0:01:38]} 34. Kd3 {[%emt 0:00:34]} Kh7 {[%emt 0:04:54]} 35. Ke3 {[%emt 0:00:35]} fxe4 {[%emt 0:02:30]} 36. fxe4 {[%emt 0:00:05]} Nc4+ {[%emt 0:01:43]} 37. Ke2 {[%emt 0:00:46]} b2 {[%emt 0:02:47]} 38. Rb1 {[%emt 0:00:38]} e5 {[%emt 0:02:30]} 39. Rg1 {[%emt 0:00:31]} exd4 {[%emt 0:04:03]} 40. Qd5 {[%emt 0:00:31]} Qxd5 {[%emt 0:03:30]} 41. exd5 {[%emt 0:30:08]} b4 {[%emt 0:33:00]} 0-1

[Event "45th FIDE Olympiad 2024"]
[Site "Budapest"]
[Date "2024.09.19"]
[Round "8.34"]
[White "Al Thebaiti, Ahmed M"]
[Black "Tran, Tuan An"]
[Result "1/2-1/2"]
[WhiteElo "1993"]
[BlackElo "1916"]
[PlyCount "69"]
[EventDate "2024.09.05"]
[EventType "team-tourn"]
[EventCountry "HUN"]
[WhiteTeam "Saudi Arabia"]
[BlackTeam "Guam"]
[WhiteTeamCountry "SAU"]
[BlackTeamCountry "GMA"]
[TimeControl "40/5400+30:1800+30"]

1. d4 d5 2. Nf3 Nf6 3. Bf4 c5 4. e3 Nc6 5. Nbd2 Bg4 6. c3 e6 7. Qa4 Bxf3 8. Nxf3 Qa5 9. Qxa5 Nxa5 10. dxc5 Nc6 11. Bb5 Bxc5 12. Ne5 Rc8 13. Nxc6 bxc6 14. Ba6 Rd8 15. Bb7 Kd7 16. O-O Ne4 17. Ba6 g5 18. Bg3 h5 19. Bd3 Nxg3 20. hxg3 f5 21. b4 Bd6 22. Rab1 h4 23. gxh4 Rxh4 24. g3 Rh3 25. Kg2 Rdh8 26. Rh1 Rxh1 27. Rxh1 Rxh1 28. Kxh1 f4 29. Kg2 fxe3 30. fxe3 Be5 31. c4 Bc3 32. b5 dxc4 33. bxc6+ Kxc6 34. Bxc4 e5 35. Kf3 1/2-1/2

[Event "45th FIDE Olympiad 2024"]
[Site "Budapest"]
[Date "2024.09.19"]
[Round "8.35"]
[White "McShane, Luke J"]
[Black "Laurusas, Tomas"]
[Result "1/2-1/2"]
[ECO "C49"]
[WhiteElo "2611"]
[BlackElo "2569"]
[Annotator "TA"]
[PlyCount "81"]
[EventDate "2024.09.05"]
[EventType "team-tourn"]
[EventCountry "HUN"]
[SourceTitle "playchess.com"]
[Source "ChessBase"]
[SourceQuality "1"]
[WhiteTeam "England"]
[BlackTeam "Lithuania"]
[WhiteTeamCountry "ENG"]
[BlackTeamCountry "LTU"]
[TimeControl "40/5400+30:1800+30"]

{[%evp 17,81,13,18,0,3,8,11,2,37,30,33,39,21,15,32,31,26,26,29,31,30,31,31,35,30,25,32,27,22,25,23,18,22,12,14,8,11,0,0,0,0,0,16,8,8,8,49,8,14,14,14,15,26,0,0,0,0,0,0,0,0,0,0,0,0,0]} 1. e4 {[%emt 0:00:04]} e5 {[%emt 0:00:06]} 2. Nf3 {[%emt 0:00:06]} Nf6 {[%emt 0:00:06]} 3. Nc3 {[%emt 0:00:06]} Nc6 {[%emt 0:04:21]} 4. Bb5 {[%emt 0:00:09]} Bb4 {[%emt 0:01:08]} 5. O-O {[%emt 0:00:15]} O-O {[%emt 0:08:32]} 6. d3 {[%emt 0:01:17]} d6 {[%emt 0:07:34]} 7. Ne2 {[%emt 0:00:10]} Ne7 {[%emt 0:00:45]} 8. c3 {[%emt 0:00:11]} Ba5 {[%emt 0:01:55][%cal Bb4a5,Ba5c7,Bc7e5][%mdl 32]} 9. Ng3 {[%emt 0:00:10]} Ng6 {[%emt 0:01:11]} 10. d4 {[%emt 0:00:42]} c6 {[%emt 0:03:05]} 11. Bd3 {[%emt 0:00:14]} Re8 {[%emt 0:00:30]} 12. h3 {[%emt 0:01:48]} h6 {[%emt 0:03:35]} 13. Be3 {[%emt 0:11:38]} Bc7 {[%emt 0:11:11]} 14. Re1 {[%emt 0:05:28]} d5 {[%emt 0:31:21]} 15. dxe5 {[%emt 0:23:06]} Nxe4 {[%emt 0:00:00]} 16. Nxe4 {[%emt 0:02:09]} dxe4 {[%emt 0:00:00]} 17. Bxe4 {[%emt 0:00:04]} Nxe5 {[%emt 0:00:00]} 18. Nxe5 {[%emt 0:02:14]} Bxe5 {[%emt 0:00:00]} 19. Qxd8 {[%emt 0:05:29]} Rxd8 {[%emt 0:00:00]} 20. f4 {[%emt 0:00:21]} Bc7 {[%emt 0:00:00]} 21. f5 {[%emt 0:00:50]} Bb6 {[%emt 0:01:06]} 22. Kf2 {[%emt 0:07:24]} Bxe3+ {[%emt 0:05:25]} 23. Kxe3 {[%emt 0:02:16]} Kf8 {[%emt 0:00:21]} 24. g4 {[%emt 0:02:28][%cal Bg2g4,Bg4g5][%mdl 32]} Bd7 {[%emt 0:00:28]} 25. h4 {[%emt 0:01:00]} f6 {[%emt 0:01:23]} 26. g5 {[%emt 0:05:11]} Be8 {[%emt 0:01:12]} 27. g6 {[%emt 0:08:21]} Rd7 {[%emt 0:01:18]} 28. Rad1 {[%emt 0:07:19]} Rad8 {[%emt 0:02:00]} 29. Rxd7 {[%emt 0:00:04]} Rxd7 $11 {[%emt 0:02:20][%mdl 4096] Endgame. KRB-KRB} 30. b4 {[%emt 0:01:05]} Re7 {[%emt 0:00:43]} 31. Rd1 {[%emt 0:05:40]} Rd7 {[%emt 0:01:52]} 32. Rb1 {[%emt 0:02:56]} Ke7 {[%emt 0:00:56]} 33. c4 {[%emt 0:01:50]} Kd8 {[%emt 0:01:25]} 34. c5 {[%emt 0:00:59]} Re7 {[%emt 0:00:11]} 35. Rd1+ {[%emt 0:01:07]} Kc7 {[%emt 0:00:26] The position is equal.} 36. h5 {[%emt 0:01:16]} Bd7 {[%emt 0:01:55]} 37. Kd4 {[%emt 0:01:19]} Re5 {[%emt 0:00:23]} 38. Rf1 {[%emt 0:00:05]} Bc8 {[%emt 0:00:20]} 39. Rf2 {[%emt 0:00:16]} Bd7 {[%emt 0:00:22]} 40. Rf3 {[%emt 0:00:40]} Bc8 {[%emt 0:01:17]} 41. Rf2 {[%emt 0:08:02] Weighted Error Value: White=0.04 (flawless) /Black=0.04 (flawless) .  Inaccurate:     	White=2     	Black=2      OK:         	White=12    	Black=18     Best:        	White=1     	---} 1/2-1/2

[Event "45th FIDE Olympiad 2024"]
[Site "Budapest"]
[Date "2024.09.19"]
[Round "8.35"]
[White "Mafnas, Peter"]
[Black "Al Abdali, Zeyad Saleh"]
[Result "0-1"]
[WhiteElo "1886"]
[BlackElo "1780"]
[PlyCount "124"]
[EventDate "2024.09.05"]
[EventType "team-tourn"]
[EventCountry "HUN"]
[WhiteTeam "Guam"]
[BlackTeam "Saudi Arabia"]
[WhiteTeamCountry "GMA"]
[BlackTeamCountry "SAU"]
[TimeControl "40/5400+30:1800+30"]

1. c4 c5 2. Nc3 Nf6 3. g3 e6 4. Bg2 d5 5. cxd5 exd5 6. d4 cxd4 7. Qxd4 Nc6 8. Qa4 d4 9. Ne4 Nxe4 10. Bxe4 Bd7 11. Qd1 Bb4+ 12. Bd2 Qe7 13. Bg2 d3 14. Nf3 O-O 15. e3 Bg4 16. h3 Bxd2+ 17. Qxd2 Bxf3 18. Bxf3 Nd4 19. Bd1 Qe4 20. O-O Nc2 21. Rc1 Rac8 22. a3 h6 23. Kh2 Rfd8 24. Rg1 a6 25. Qa5 Rd5 26. Qd2 Qe5 27. Bf3 Rd7 28. Rgd1 Rcc7 29. Rb1 h5 30. Rg1 b6 31. Kh1 Rc4 32. Bd1 Rd6 33. Bf3 Qf5 34. Bg2 Qe5 35. Bb7 b5 36. Bg2 g6 37. Bf1 Kg7 38. Kh2 Qf5 39. Rd1 Qe5 40. Rb1 Qf5 41. Rd1 Qf6 42. Rb1 Qd8 43. Rd1 b4 44. Bxd3 bxa3 45. Qe2 Nd4 46. exd4 Rcxd4 47. bxa3 Rxd3 48. Rxd3 Rxd3 49. Re1 Kh7 50. Qa2 Rf3 51. h4 Qf6 52. Kg1 Qc3 53. Ra1 a5 54. a4 Rf5 55. Qa3 Qd4 56. Qa2 Kg7 57. Re1 Rf3 58. Kg2 Qf6 59. Qd2 Kh7 60. Re2 Ra3 61. Qd7 Qf3+ 62. Kh2 Ra1 {0-} 0-1

[Event "45th FIDE Olympiad 2024"]
[Site "Budapest"]
[Date "2024.09.19"]
[Round "8.36"]
[White "Pidluznij, Gleb"]
[Black "Jones, Gawain C B"]
[Result "1/2-1/2"]
[ECO "B30"]
[WhiteElo "2425"]
[BlackElo "2646"]
[Annotator "TA"]
[PlyCount "120"]
[EventDate "2024.09.05"]
[EventType "team-tourn"]
[EventCountry "HUN"]
[SourceTitle "playchess.com"]
[Source "ChessBase"]
[SourceQuality "1"]
[WhiteTeam "Lithuania"]
[BlackTeam "England"]
[WhiteTeamCountry "LTU"]
[BlackTeamCountry "ENG"]
[TimeControl "40/5400+30:1800+30"]

{[%evp 10,120,20,37,22,24,34,19,20,14,20,10,25,21,29,19,35,0,0,0,0,0,0,0,0,-8,0,-15,0,0,0,0,0,-18,74,78,118,128,150,148,142,111,133,145,205,56,55,56,74,57,80,67,79,8,8,8,5,-15,-16,-15,-17,-45,-45,-53,-20,-20,-11,-146,-131,-135,-8,-11,-1,-1,-1,-1,0,-1,-1,-1,-1,-1,-1,-1,-1,-1,-1,-1,-1,-1,-1,-1,-1,-1,-1,-1,-1,-1,0,-1,-1,-1,-1,-1,-1,-1,-1,-1,0,0,0,0,0]} 1. e4 {[%emt 0:00:04]} c5 {[%emt 0:00:16]} 2. Nf3 {[%emt 0:00:08]} Nc6 {[%emt 0:00:05]} 3. Bb5 {[%emt 0:00:09]} e6 {[%emt 0:00:07]} 4. O-O {[%emt 0:00:29]} Nge7 {[%emt 0:00:06]} 5. d4 {[%emt 0:00:13]} cxd4 {[%emt 0:00:07]} 6. Nxd4 {[%emt 0:00:06]} Ng6 {[%emt 0:00:15]} 7. Be3 {[%emt 0:00:29]} Be7 {[%emt 0:00:07]} 8. Be2 {[%emt 0:00:47]} O-O {[%emt 0:00:08]} 9. c4 {[%emt 0:01:07]} Nxd4 {[%emt 0:00:14]} 10. Qxd4 {[%emt 0:01:53]} Bf6 {[%emt 0:00:59]} 11. Qd2 {[%emt 0:00:15]} b6 {[%emt 0:00:07]} 12. Nc3 {[%emt 0:11:40]} Bb7 {[%emt 0:01:17]} 13. Rad1 {[%emt 0:04:30]} Bxc3 {[%emt 0:01:25]} (13... Be5 {is more complex.} 14. b4 Qc7 15. Nb5 Bxh2+ 16. Kh1 Qb8) 14. bxc3 {[%emt 0:09:25]} Bxe4 {[%emt 0:01:13]} 15. Qxd7 {[%emt 0:00:18]} Qc8 {[%emt 0:02:06]} 16. Qxc8 {[%emt 0:14:37]} Rfxc8 {[%emt 0:04:29]} 17. Rd6 {[%emt 0:08:41]} Bb7 {[%emt 0:05:22]} 18. c5 {[%emt 0:12:48]} bxc5 {[%emt 0:03:44]} 19. Rb1 {[%emt 0:07:56]} Be4 {[%emt 0:00:43]} 20. Rb5 {[%emt 0:00:29]} Nh4 {[%emt 0:03:19]} 21. Rxc5 {[%emt 0:02:58]} Rcb8 {[%emt 0:13:59]} (21... Nf5 $11 22. Rxc8+ Rxc8) 22. f3 $16 {[%emt 0:02:58]} Bd5 {[%emt 0:00:53][%cal Oh4f5]} 23. Bf2 {[%emt 0:10:03] This pair of bishops is nice.} Nf5 {[%emt 0:05:47]} 24. Rd7 $1 {[%emt 0:04:04]} Bxa2 {[%emt 0:08:18] [#] Black is weak on the dark squares} 25. g4 $1 {[%emt 0:01:03]} Nh6 {[%emt 0:00:20] [#]} 26. Ra5 $1 {[%emt 0:03:11][%csl LRa2,LRa7] White has more active pieces.} Rb2 {[%emt 0:05:07]} (26... Bb3 $16 {was called for.} 27. Ra3 (27. Rdxa7 Rxa7 28. Bxa7 Rc8 $16) (27. Bxa7 Rc8 $16) (27. Raxa7 Rxa7 28. Bxa7 Ra8 $16) 27... Bd5) 27. Rdxa7 {[%emt 0:00:10]} ({White should play} 27. Raxa7 $18 Rab8 28. Bd3) 27... Rxa7 $14 {[%emt 0:00:06]} 28. Rxa7 {[%emt 0:00:09] Threatening mate with Ra8+.} f5 {[%emt 0:01:39]} 29. Kf1 {[%emt 0:02:06] And now g5 would win.} fxg4 {[%emt 0:02:58]} 30. fxg4 {[%emt 0:00:18]} Rb1+ {[%emt 0:00:18]} 31. Kg2 {[%emt 0:00:52]} (31. Be1 $16 Bb3 32. h3) 31... Bd5+ $11 {[%emt 0:00:54]} 32. Kg3 {[%emt 0:00:22]} Rb2 {[%emt 0:00:09]} 33. Bf3 {[%emt 0:01:53]} Bxf3 {[%emt 0:00:13]} 34. Kxf3 {[%emt 0:00:09] [#]} Nxg4 $1 {[%emt 0:00:06]} 35. Kxg4 {[%emt 0:00:29]} (35. Bd4 Nf6) 35... Rxf2 {[%emt 0:00:06][%mdl 4096] Endgame. KR-KR} 36. h4 {[%emt 0:00:11]} Rf5 {[%emt 0:05:45]} 37. h5 {[%emt 0:01:18]} h6 {[%emt 0:00:52] Strongly threatening ...Rc5.} 38. Re7 {[%emt 0:00:27]} (38. Rc7 $1 $11 {was the only way to keep the balance.}) 38... Rg5+ $17 {[%emt 0:00:33]} 39. Kh4 {[%emt 0:00:08]} Re5 {[%emt 0:00:10]} (39... e5 $17 {White should prevent ...Kf8.} 40. Rd7 Kf8) 40. c4 {[%emt 0:00:52] The position is equal.} Kf8 {[%emt 0:01:20]} 41. Rc7 {[%emt 0:30:07]} Re4+ {[%emt 0:30:53]} 42. Kg3 {[%emt 0:00:44]} Re5 {[%emt 0:04:07]} 43. Kh4 {[%emt 0:00:00]} Re1 {[%emt 0:00:00]} 44. c5 {[%emt 0:00:00]} Ke8 {[%emt 0:00:00]} 45. c6 {[%emt 0:00:00]} Rd1 {[%emt 0:00:00]} 46. Kh3 {[%emt 0:00:00]} (46. Rxg7 Rh1+ 47. Kg4 Rg1+ 48. Kf4 Rxg7 49. Ke5 Ke7 50. Kd4 Rg5 (50... Kd6 51. Ke4 Re7 52. Ke3 e5 53. Ke4 Kxc6 54. Kf5 e4 55. Kf6 Rc7 56. Ke6 e3 57. Ke5 e2 58. Kf4 e1=Q 59. Kf3 Rf7+ 60. Kg2 Rf2+ 61. Kh3 Qe3+ 62. Kh4 Rf4#) 51. c7 Kd7 (51... Rxh5 $2 52. c8=Q $18) 52. Ke3 Kxc7 (52... Rxh5 53. Kf3 Rf5+ 54. Kg2 Kxc7 55. Kg3 Kc6 56. Kh2 Rg5 57. Kh1 e5 58. Kh2 e4 59. Kh1 e3 60. Kh2 e2 61. Kh3 e1=Q 62. Kh2 Qh4#) 53. Kf4 Rxh5 54. Ke3 Rf5 55. Ke2 h5 56. Kd3 Kc6 57. Kc2 h4 58. Kd2 h3 59. Ke2 h2 60. Kd3 Rf3+ (60... h1=R 61. Kd2 Kc5 62. Kd3 Rh3+ 63. Ke2 Rh2+ 64. Ke3 Kd5 65. Kd3 Rf3#) 61. Kd4 h1=Q (61... h1=R 62. Ke4 Rhf1 63. Ke5 Rf4 64. Kxe6 Re4#) (61... e5+ 62. Kc4 h1=Q 63. Kb4 Qh4+ 64. Ka5 Ra3#) 62. Ke4 Qh5 63. Kd4 Qd5#) 46... Rh1+ {[%emt 0:00:00]} 47. Kg4 {[%emt 0:00:00]} Kd8 {[%emt 0:00:00]} 48. Rd7+ {[%emt 0:00:00]} (48. Rxg7 {leads to mate.} Rg1+ 49. Kf4 Rxg7 50. Ke5 Kc7 51. Kf4 Rg5 (51... Kxc6 52. Ke5 Rg5+ 53. Kxe6 Rxh5 54. Kf6 Kd7 55. Kg6 Rg5+ 56. Kf6 Rb5 57. Kf7 Rb6 58. Kg8 Ke6 59. Kg7 Ke7 60. Kh8 Kf8 61. Kh7 h5 62. Kh8 Rh6#) 52. Kf3 Rxh5 (52... Kxc6 53. Ke4 Rxh5 54. Kf3 Rf5+ 55. Ke4 h5 56. Kd3 h4 57. Ke4 h3 58. Kd3 h2 59. Kc3 h1=Q 60. Kd2 Rf3 61. Ke2 Qg2+ 62. Ke1 Rf1#) 53. Kf2 Rf5+ (53... Kxc6 {is a self mate.} 54. Ke3 Kd5 55. Kd3 e5 56. Ke3 e4 57. Ke2 Kd4 58. Kf2 e3+ 59. Kg3 Rg5+ 60. Kf3 Kd3 61. Kf4 e2 62. Kf3 e1=Q 63. Kf4 Qg3#) 54. Ke2 h5 (54... Kxc6 {gets mated.} 55. Kd3 Kd5 56. Kd2 h5 57. Kd3 h4 58. Kc2 h3 59. Kd3 h2 60. Kc3 h1=R 61. Kd3 Rf2 62. Ke3 Rhh2 63. Kd3 Rh3#) 55. Ke3 h4 (55... Kxc6 56. Ke2 h4 57. Kd2 h3 58. Kd3 h2 59. Ke3 h1=Q 60. Ke2 Qh2+ 61. Ke3 Kd5 62. Kd3 Rf3#) 56. Ke4 Kxc6 (56... h3 57. Kd4 h2 58. Ke4 h1=Q+ 59. Kd4 Kxc6 60. Ke3 Rf3+ 61. Ke4 Qh5 62. Kd4 Qd5#) 57. Kd3 h3 58. Ke3 h2 59. Ke4 h1=Q+ (59... h1=R 60. Kd3 Rh2 61. Kd4 Rh3 62. Ke4 Kd6 63. Kd4 Rf4#) 60. Ke3 Rf3+ (60... Qf3+ 61. Kd2 Qg3 62. Kd1 Qg2 63. Ke1 Rf1#) 61. Ke4 Qh5 62. Kd4 Qd5#) 48... Kc8 {[%emt 0:00:00]} 49. Re7 {[%emt 0:00:00]} Rg1+ {[%emt 0:00:00]} 50. Kf4 {[%emt 0:00:00]} Rg5 {[%emt 0:00:00]} 51. Rxe6 {[%emt 0:00:00]} Kc7 {[%emt 0:00:00]} 52. Re5 {[%emt 0:00:00]} Rg1 {[%emt 0:00:00]} 53. Re6 {[%emt 0:00:00]} Rh1 {[%emt 0:00:00]} 54. Re7+ {[%emt 0:00:00]} Kxc6 {[%emt 0:00:00]} 55. Rxg7 {[%emt 0:00:00]} Rxh5 {[%emt 0:00:00]} 56. Kg4 {[%emt 0:00:00]} Rh1 {[%emt 0:00:00] ( -> ...Rg1+)} 57. Ra7 {[%emt 0:00:00]} Rg1+ {[%emt 0:00:00]} 58. Kh5 {[%emt 0:00:00]} Rg5+ {[%emt 0:00:00]} 59. Kxh6 {[%emt 0:00:00]} Kb6 {[%emt 0:00:00]} 60. Kxg5 {[%emt 0:00:00]} Kxa7 {[%emt 0:00:00] Weighted Error Value: White=0.13 (very precise) /Black=0.12 (very precise) .  Mistake:       	White=3     	Black=3      Inaccurate:     	White=2     	Black=2      OK:         	White=25    	Black=25     Best:        	White=3     	Black=3      Strong:       	White=3     	---        Brilliant:      	---       	Black=1} 1/2-1/2

[Event "45th FIDE Olympiad 2024"]
[Site "Budapest"]
[Date "2024.09.19"]
[Round "8.36"]
[White "Khayat, Emad"]
[Black "Combs, Daniel"]
[Result "1-0"]
[WhiteElo "1907"]
[BlackElo "1688"]
[PlyCount "85"]
[EventDate "2024.09.05"]
[EventType "team-tourn"]
[EventCountry "HUN"]
[WhiteTeam "Saudi Arabia"]
[BlackTeam "Guam"]
[WhiteTeamCountry "SAU"]
[BlackTeamCountry "GMA"]
[TimeControl "40/5400+30:1800+30"]

1. d4 Nf6 2. Nf3 d5 3. g3 Bf5 4. Bg2 e6 5. O-O Bd6 6. c4 c6 7. Nc3 h6 8. Qb3 Qc8 9. Bd2 O-O 10. Rac1 Nbd7 11. Nh4 Bh7 12. cxd5 exd5 13. Nxd5 Nxd5 14. Bxd5 Nf6 15. Bg2 Qd7 16. Bb4 Bxb4 17. Qxb4 Rfe8 18. e3 Rab8 19. Nf3 Be4 20. Ne5 Qe7 21. Qxe7 Rxe7 22. b4 Bxg2 23. Kxg2 Nd7 24. Nxd7 Rxd7 25. a4 a6 26. Rc5 Rd6 27. Rfc1 Kf8 28. Kf3 Ke7 29. b5 axb5 30. axb5 cxb5 31. Rxb5 Rd7 32. h4 f6 33. h5 Ke6 34. Ke4 Ke7 35. Kf5 Kf7 36. Rcb1 Ke7 37. R1b2 Kf7 38. g4 Ke7 39. d5 b6 40. e4 Rdb7 41. f4 Kd7 42. e5 Ke7 43. Kg6 1-0

[Event "45th FIDE Olympiad 2024"]
[Site "Budapest"]
[Date "2024.09.19"]
[Round "8.37"]
[White "Vocaturo, Daniele"]
[Black "Suleymanli, Aydin"]
[Result "1/2-1/2"]
[ECO "C88"]
[WhiteElo "2600"]
[BlackElo "2632"]
[Annotator "TA"]
[PlyCount "77"]
[EventDate "2024.09.05"]
[EventType "team-tourn"]
[EventCountry "HUN"]
[SourceTitle "playchess.com"]
[Source "ChessBase"]
[SourceQuality "1"]
[WhiteTeam "Italy"]
[BlackTeam "Azerbaijan"]
[WhiteTeamCountry "ITA"]
[BlackTeamCountry "AZE"]
[TimeControl "40/5400+30:1800+30"]

{[%evp 16,77,18,17,27,27,29,15,22,0,1,10,25,29,33,27,15,25,19,24,51,44,36,25,114,103,125,113,108,28,25,36,23,16,10,11,22,3,10,30,73,83,81,0,7,9,14,3,6,0,0,0,2,-19,-21,-19,0,0,0,0,7,7,8,8]} 1. e4 {[%emt 0:00:08]} e5 {[%emt 0:00:06]} 2. Nf3 {[%emt 0:00:22]} Nc6 {[%emt 0:00:16]} 3. Bb5 {[%emt 0:00:38]} a6 {[%emt 0:00:12]} 4. Ba4 {[%emt 0:00:09]} Nf6 {[%emt 0:00:06]} 5. O-O {[%emt 0:00:30]} Be7 {[%emt 0:00:26]} 6. Re1 {[%emt 0:00:42]} b5 {[%emt 0:00:13]} 7. Bb3 {[%emt 0:00:06]} O-O {[%emt 0:00:11]} 8. h3 {[%emt 0:01:30]} Bb7 {[%emt 0:00:36]} 9. d3 {[%emt 0:01:28]} d5 {[%emt 0:00:48]} 10. exd5 {[%emt 0:00:44]} Nxd5 {[%emt 0:00:07]} 11. a4 {[%emt 0:01:04]} Ndb4 {[%emt 0:02:15]} 12. Nxe5 {[%emt 0:10:09]} Nd4 {[%emt 0:07:55]} 13. Nd2 {[%emt 0:02:16]} Nxb3 {[%emt 0:00:44]} 14. Nxb3 {[%emt 0:00:06] Na5 would now be deadly.} Qd5 {[%emt 0:00:05][%csl Gb7][%cal Rd5g2]} 15. Nf3 {[%emt 0:00:28] A dynamic duo of knights.} Qd7 {[%emt 0:00:06]} 16. Re3 {[%emt 0:01:05]} Nd5 {[%emt 0:30:36]} 17. Re5 {[%emt 0:02:01]} f6 {[%emt 0:01:35]} 18. Re1 {[%emt 0:03:53]} Nb4 {[%emt 0:02:56]} 19. Nfd4 {[%emt 0:19:51] c3 is the strong threat.} bxa4 {[%emt 0:23:22]} (19... Bd6 $11) 20. Na5 $16 {[%emt 0:02:47]} Bd5 {[%emt 0:12:16]} 21. c3 {[%emt 0:05:01][%csl LRa4,LRb4]} Bc5 {[%emt 0:02:36] [#]} 22. Be3 {[%emt 0:02:05]} (22. Ne2 $1 $16 Nc6 (22... Bxg2 23. Nf4 $16) 23. Qxa4 (23. Rxa4 Nxa5 24. Rxa5 Bb6 $16)) 22... Bf7 $1 $11 {[%emt 0:00:56]} 23. cxb4 {[%emt 0:08:14]} Bxd4 {[%emt 0:00:09]} 24. Bxd4 {[%emt 0:11:25]} (24. Qxa4 {simplifies} Qxa4 25. Rxa4 Bxb2 26. Nc6) 24... Qxd4 {[%emt 0:00:02]} 25. Nc6 {[%emt 0:08:52]} Qxb2 {[%emt 0:01:04]} 26. Qxa4 {[%emt 0:00:09]} Rfe8 {[%emt 0:00:39]} 27. Reb1 {[%emt 0:04:06]} Qc3 {[%emt 0:01:11]} 28. b5 {[%emt 0:01:34]} a5 {[%emt 0:00:30] [#]} 29. Qa3 {[%emt 0:01:09]} (29. Qf4 $1 $16 {[%cal Rf4c7]} Rac8 30. Qf3 (30. Nxa5 Qxd3 31. Nc6 Ra8 $11)) 29... Qd2 {[%emt 0:01:23] The position is equal.} 30. Qc5 {[%emt 0:02:12] Threatens to win with Ne7+.} Kh8 {[%emt 0:02:53]} 31. Rd1 {[%emt 0:00:56]} Qe2 {[%emt 0:01:56]} 32. d4 {[%emt 0:01:41][%cal Bd3d4,Bd4d5][%mdl 32]} (32. Nxa5 $2 {is the wrong capture.} Rxa5 33. Rxa5 Qxd1+ $19) 32... a4 {[%emt 0:01:23]} 33. d5 {[%emt 0:00:37]} a3 {[%emt 0:00:59]} 34. b6 {[%emt 0:02:47]} cxb6 {[%emt 0:00:52]} 35. Qxb6 {[%emt 0:00:04] Hoping for d6.} Qb2 {[%emt 0:01:16]} 36. Qxb2 {[%emt 0:05:02]} axb2 {[%emt 0:00:04]} 37. Rab1 {[%emt 0:00:05]} Bxd5 {[%emt 0:01:56]} 38. Rxd5 {[%emt 0:01:18]} Rec8 $1 {[%emt 0:00:27] [#]} 39. Rxb2 $1 {[%emt 0:00:18] Weighted Error Value: White=0.08 (flawless) /Black=0.11 (very precise) .  Mistake:       	White=2     	Black=1      Inaccurate:     	---       	Black=2      OK:         	White=15    	Black=13     Best:        	White=3     	---        Strong:       	---       	Black=2} 1/2-1/2